bitfinex-derivatives/quotes_SOLF0:USTF0_20240923
["timestamp","ask_amount","ask_price","bid_price","bid_amount"]
[1727084146368,7.43,144.5,144.45,7.43]
[1727084147369,7.43,144.5,144.48,3.4607]
[1727084149369,7.43,144.5,144.49,3.4606]
[1727084149773,7.43,144.51,144.5,3.4603]
[1727084150272,7.43,144.52,144.47,7.43]
[1727084150965,7.43,144.52,144.51,3.4601]
[1727084155762,1.3688,144.54,144.48,7.43]
[1727084155965,8.7988,144.54,144.5,7.43]
[1727084156378,8.7988,144.54,144.53,3.4596]
[1727084156762,8.7988,144.54,144.5,7.43]
[1727084156763,7.43,144.55,144.5,7.43]
[1727084156966,7.43,144.55,144.54,3.4594]
[1727084160360,3.54408914,144.58,144.52,7.43]
[1727084160565,7.43,144.59,144.55,7.43]
[1727084160761,10.89718412,144.6,144.59,3.458]
[1727084160960,10.89718412,144.6,144.47,6.93792392]
[1727084160961,8.7939,144.61,144.57,7.43]
[1727084161169,7.43,144.61,144.57,7.43]
[1727084161674,7.43,144.6,144.55,7.43]
[1727084161870,7.43,144.57,144.56,3.4589]
[1727084165673,7.43,144.57,144.55,3.459]
[1727084165875,7.43,144.56,144.55,3.459]
[1727084167976,7.43,144.56,144.53,3.4594]
[1727084168165,7.43,144.56,144.51,7.43]
[1727084168573,7.43,144.56,144.54,3.4592]
[1727084171170,7.43,144.55,144.46,1.3807]
[1727084171376,7.43,144.52,144.47,7.43]
[1727084171677,7.43,144.53,144.52,3.4597]
[1727084172677,1.4007,144.55,144.51,7.43]
[1727084173078,1.4007,144.55,144.54,3.4594]
[1727084173279,1.436,144.61,144.52,7.43]
[1727084173280,7.43,144.57,144.52,7.43]
[1727084173677,10.8887,144.57,144.52,7.43]
[1727084174881,7.43,144.55,144.54,3.4592]
[1727084175476,7.43,144.55,144.53,3.4595]
[1727084175876,7.43,144.54,144.53,3.4595]
[1727084179587,10.85655056,144.54,144.53,3.4595]
[1727084180083,10.85655056,144.54,144.46,1.3807]
[1727084180390,10.85655056,144.54,144.48,7.43]
[1727084180391,7.43,144.52,144.48,7.43]
[1727084180591,7.43,144.53,144.49,7.43]
[1727084181577,10.89348234,144.53,144.49,7.43]
[1727084182487,7.43,144.56,144.51,7.43]
[1727084182886,7.43,144.55,144.51,7.43]
[1727084183084,7.43,144.55,144.53,3.4595]
[1727084183782,7.43,144.55,144.54,3.4594]
[1727084186179,7.43,144.58,144.52,7.43]
[1727084187290,10.8886,144.58,144.55,3.459]
[1727084188585,10.8888,144.57,144.54,3.4594]
[1727084188791,10.8888,144.57,144.48,1.4241]
[1727084188792,7.43,144.54,144.49,7.43]
[1727084189492,7.43,144.54,144.53,3.4595]
[1727084189691,10.92820386,144.54,144.53,3.4595]
[1727084190285,3.49820386,144.54,144.53,3.4595]
[1727084190485,7.43,144.55,144.54,3.4594]
[1727084190988,7.43,144.58,144.53,7.43]
[1727084191396,10.8885,144.58,144.53,7.43]
[1727084191587,7.43,144.57,144.52,7.43]
[1727084192890,10.8887,144.57,144.52,7.43]
[1727084193593,10.8887,144.57,144.54,3.4592]
[1727084193893,7.43,144.55,144.54,3.4592]
[1727084196892,10.8892,144.55,144.52,3.4597]
[1727084197194,7.43,144.53,144.52,3.4597]
[1727084198495,3.5359269,144.54,144.53,3.4596]
[1727084198693,10.9659269,144.54,144.53,3.4596]
[1727084198893,10.9659269,144.54,144.46,1.3807]
[1727084199098,7.43,144.52,144.47,7.43]
[1727084199294,7.43,144.52,144.5,3.4602]
[1727084199997,10.89428076,144.52,144.5,3.4602]
[1727084200199,14.35418076,144.52,144.49,3.4605]
[1727084200790,14.35418076,144.52,144.47,7.43]
[1727084200986,7.43,144.5,144.46,1.3807]
[1727084201194,7.43,144.47,144.42,7.43]
[1727084201894,7.43,144.47,144.45,3.4613]
[1727084202689,7.43,144.47,144.46,3.4613]
[1727084203497,7.43,144.47,144.4,5.96044491]
[1727084203693,7.43,144.43,144.38,7.43]
[1727084204698,10.84631465,144.43,144.38,7.43]
[1727084205600,10.84631465,144.43,144.41,3.4623]
[1727084206496,3.4614,144.46,144.4,7.43]
[1727084206801,10.8144609,144.45,144.4,7.43]
[1727084207101,7.43,144.44,144.42,3.4621]
[1727084208198,7.43,144.43,144.39,3.4628]
[1727084208398,7.43,144.41,144.39,3.4628]
[1727084209098,8.7974,144.44,144.39,7.43]
[1727084209503,12.27530075,144.44,144.41,3.4623]
[1727084209906,8.7974,144.44,144.41,3.4623]
[1727084210596,3.4612,144.47,144.4,7.43]
[1727084210797,7.43,144.46,144.42,7.43]
[1727084211002,7.43,144.45,144.4,7.43]
[1727084211499,7.43,144.45,144.42,3.4621]
[1727084213800,2.7139,144.5,144.44,3.4618]
[1727084213993,2.7139,144.5,144.42,7.43]
[1727084214196,7.43,144.48,144.42,7.43]
[1727084214396,14.36356857,144.48,144.44,3.4616]
[1727084215603,14.36356857,144.48,144.45,3.4615]
[1727084220308,7.43,144.46,144.35,5.94888335]
[1727084220513,7.43,144.41,144.36,7.43]
[1727084223110,7.43,144.41,144.38,3.463]
[1727084223812,6.17722337,144.5,144.46,3.4611]
[1727084224009,7.43,144.48,144.43,7.43]
[1727084224207,7.43,144.49,144.44,7.43]
[1727084224412,1.3359,144.5,144.46,7.43]
[1727084224615,7.43,144.53,144.49,7.43]
[1727084224912,7.43,144.53,144.49,3.4605]
[1727084225110,1.4531,144.54,144.49,3.4605]
[1727084225111,7.43,144.52,144.49,3.4605]
[1727084225517,7.43,144.51,144.48,3.4607]
[1727084226421,15.0899,144.52,144.48,3.4607]
[1727084227114,1.4531,144.54,144.47,11.63]
[1727084227815,1.4531,144.54,144.5,3.4603]
[1727084228013,1.4531,144.54,144.47,11.63]
[1727084228416,4.9127,144.54,144.49,3.4604]
[1727084228718,1.4531,144.54,144.49,3.4604]
[1727084229221,3.4597,144.53,144.49,3.4604]
[1727084230409,3.4597,144.53,144.5,3.4603]
[1727084232020,16.5425,144.54,144.5,3.4603]
[1727084233917,3.4596,144.53,144.5,3.4603]
[1727084235326,16.5426,144.54,144.5,3.4603]
[1727084236126,2.8057,144.57,144.47,11.63]
[1727084236428,2.8057,144.57,144.49,11.63]
[1727084236623,6.2646,144.57,144.53,3.4594]
[1727084237017,4.8377,144.57,144.53,3.4594]
[1727084237230,3.4589,144.56,144.53,3.4594]
[1727084237416,3.4589,144.56,144.52,3.4598]
[1727084237615,1.3788,144.57,144.5,12.9808]
[1727084237819,11.63,144.6,144.5,12.9808]
[1727084238022,3.44318856,144.6,144.56,3.4587]
[1727084238524,15.07318856,144.6,144.56,3.4587]
[1727084238723,15.07318856,144.6,144.52,11.63]
[1727084239927,11.63,144.58,144.5,2.6746]
[1727084240317,11.63,144.56,144.52,3.4597]
[1727084240525,11.63,144.54,144.46,1.3238]
[1727084240718,1.3361,144.61,144.47,11.63]
[1727084240719,4.73540183,144.61,144.47,11.63]
[1727084240917,11.63,144.57,144.54,3.4593]
[1727084241122,15.13035,144.57,144.54,3.4593]
[1727084242324,11.63,144.57,144.55,3.459]
[1727084242530,11.63,144.59,144.55,3.459]
[1727084242725,11.63,144.6,144.55,3.459]
[1727084242930,11.63,144.58,144.54,3.4593]
[1727084243140,15.11702225,144.58,144.54,3.4593]
[1727084244122,11.63,144.58,144.55,3.459]
[1727084244526,11.63,144.58,144.54,3.4593]
[1727084244925,11.63,144.58,144.51,11.63]
[1727084246032,11.63,144.58,144.55,3.459]
[1727084248328,7.45,144.57,144.55,3.459]
[1727084249132,3.53721765,144.59,144.55,3.459]
[1727084249423,7.45,144.58,144.55,3.459]
[1727084249630,10.85184901,144.58,144.55,3.459]
[1727084250534,7.45,144.56,144.46,2.7299]
[1727084250835,7.45,144.5,144.46,1.4061]
[1727084251129,7.45,144.5,144.47,3.4609]
[1727084251443,7.45,144.5,144.46,1.4061]
[1727084251625,3.50083454,144.51,144.46,1.4061]
[1727084251827,7.45,144.52,144.46,8.8561]
[1727084252031,7.45,144.52,144.48,7.45]
[1727084252333,6.87746976,144.53,144.49,3.4604]
[1727084252832,3.4602,144.51,144.48,3.4607]
[1727084253521,6.86530402,144.51,144.48,3.4607]
[1727084256222,3.40510402,144.51,144.43,11.63]
[1727084256529,11.63,144.52,144.43,11.63]
[1727084256728,3.4601,144.51,144.48,3.4607]
[1727084258231,15.0077524,144.52,144.49,3.4606]
[1727084258232,3.46,144.52,144.49,3.4606]
[1727084259531,6.90358284,144.53,144.5,3.4602]
[1727084259722,1.4303,144.55,144.49,11.63]
[1727084260527,1.4644,144.61,144.51,11.63]
[1727084260723,1.3912,144.6,144.51,11.63]
[1727084261121,1.3912,144.6,144.52,11.63]
[1727084261327,1.3912,144.6,144.54,11.63]
[1727084261832,1.3912,144.6,144.56,3.4588]
[1727084262230,1.3912,144.6,144.5,3.46188465]
[1727084262432,1.3912,144.6,144.55,3.459]
[1727084262732,1.3912,144.6,144.53,11.63]
[1727084262931,1.3912,144.6,144.55,3.4589]
[1727084263328,1.3912,144.6,144.53,11.63]
[1727084263533,3.51190984,144.62,144.53,11.63]
[1727084263731,11.63,144.64,144.54,1.4656]
[1727084264237,15.08435038,144.64,144.55,11.63]
[1727084264839,15.08435038,144.64,144.57,3.4586]
[1727084267835,15.08435038,144.64,144.58,3.4584]
[1727084268035,15.08435038,144.64,144.55,11.63]
[1727084269041,15.08435038,144.64,144.58,3.4583]
[1727084274345,7.44,144.62,144.58,3.4583]
[1727084278039,7.44,144.62,144.57,10.8985]
[1727084278845,7.44,144.62,144.57,3.4585]
[1727084279051,7.44,144.62,144.57,10.8985]
[1727084280346,7.44,144.62,144.57,7.44]
[1727084281450,7.44,144.62,144.57,10.8985]
[1727084283458,7.44,144.62,144.58,3.4584]
[1727084283655,3.45435038,144.64,144.58,7.44]
[1727084283964,4.1843,144.68,144.6,7.44]
[1727084283965,7.44,144.65,144.6,7.44]
[1727084284150,3.4041466,144.64,144.61,7.44]
[1727084284352,7.44,144.66,144.61,7.44]
[1727084284655,7.44,144.66,144.61,10.8976]
[1727084284859,7.44,144.62,144.55,2.4514]
[1727084285063,7.44,144.62,144.57,7.44]
[1727084285662,10.94792703,144.62,144.57,7.44]
[1727084285865,10.94792703,144.62,144.59,3.4581]
[1727084287461,4.1843,144.68,144.61,7.44]
[1727084287660,11.6243,144.68,144.63,7.44]
[1727084287855,3.40344001,144.67,144.63,7.44]
[1727084288056,3.40344001,144.67,144.55,2.4514]
[1727084288057,4.1843,144.68,144.61,3.4575]
[1727084288352,7.44,144.67,144.62,7.44]
[1727084288557,7.44,144.64,144.59,7.44]
[1727084288752,10.897,144.64,144.59,7.44]
[1727084289254,7.44,144.64,144.55,2.4514]
[1727084289456,7.67109026,144.68,144.55,2.4514]
[1727084289457,7.44,144.62,144.58,7.44]
[1727084289852,3.457,144.64,144.58,7.44]
[1727084290063,7.44,144.63,144.59,7.44]
[1727084290762,7.44,144.62,144.59,3.458]
[1727084291854,7.44,144.61,144.56,7.44]
[1727084292263,3.4581,144.6,144.56,3.4588]
[1727084292663,3.4581,144.6,144.54,1.4656]
[1727084293065,3.4578,144.61,144.57,3.4585]
[1727084293861,6.98149629,144.6,144.56,3.4588]
[1727084294058,12.9798,144.62,144.54,1.4656]
[1727084294264,1.4383,144.61,144.53,11.63]
[1727084294561,3.43298041,144.6,144.53,11.63]
[1727084295765,3.43298041,144.6,144.57,3.4585]
[1727084297167,1.3498,144.62,144.55,11.63]
[1727084297365,11.63,144.66,144.57,11.63]
[1727084297670,11.63,144.66,144.6,3.4578]
[1727084297867,2.7742,144.67,144.59,11.63]
[1727084298074,2.7742,144.67,144.61,11.63]
[1727084298369,2.7742,144.67,144.63,3.4571]
[1727084298370,6.2307,144.67,144.63,3.4571]
[1727084298569,2.7742,144.67,144.63,3.4571]
[1727084299872,3.4565,144.66,144.63,3.4571]
[1727084300469,86.47826384,144.77,144.67,3.456]
[1727084300669,2.7271,144.73,144.65,11.63]
[1727084300973,3.4555,144.71,144.66,3.4563]
[1727084301269,2.7271,144.73,144.65,11.63]
[1727084301467,14.3571,144.73,144.63,11.63]
[1727084301669,14.3571,144.73,144.62,1.3889]
[1727084301670,2.7271,144.73,144.62,1.3889]
[1727084301865,2.7271,144.73,144.62,13.0189]
[1727084301866,11.63,144.71,144.62,13.0189]
[1727084302066,3.4559,144.69,144.64,3.4568]
[1727084302265,3.40800663,144.69,144.62,13.0189]
[1727084302470,11.63,144.71,144.62,13.0189]
[1727084303174,3.4558,144.69,144.64,3.4568]
[1727084303375,3.43773767,144.68,144.62,13.0189]
[1727084303565,3.4556,144.7,144.62,13.0189]
[1727084303770,3.467123,144.69,144.62,13.0189]
[1727084304173,3.467123,144.69,144.66,3.4564]
[1727084304376,3.4556,144.7,144.66,3.4564]
[1727084304575,3.4554,144.71,144.64,11.63]
[1727084304878,3.4554,144.71,144.66,3.4565]
[1727084305071,3.4554,144.71,144.64,11.63]
[1727084305375,3.4554,144.71,144.66,3.4565]
[1727084305674,3.4556,144.7,144.66,3.4565]
[1727084307580,2.7271,144.73,144.66,11.63]
[1727084308378,2.7271,144.73,144.65,11.63]
[1727084308573,14.3571,144.73,144.65,11.63]
[1727084308772,14.3571,144.73,144.62,1.3889]
[1727084308773,11.63,144.71,144.62,1.3889]
[1727084309276,3.456,144.69,144.65,3.4566]
[1727084309582,3.37506051,144.68,144.65,3.4566]
[1727084310082,6.83116051,144.68,144.64,3.4569]
[1727084310282,11.63,144.71,144.62,1.3889]
[1727084311181,2.7271,144.73,144.62,1.3889]
[1727084311182,11.63,144.69,144.62,1.3889]
[1727084311376,2.7271,144.73,144.62,1.3889]
[1727084311377,3.52179059,144.68,144.63,11.63]
[1727084311578,3.4558,144.69,144.65,3.4566]
[1727084311886,6.8313104,144.69,144.63,11.63]
[1727084312077,3.456,144.68,144.65,3.4566]
[1727084312282,3.456,144.68,144.31,25.09646345]
[1727084312283,11.63,144.7,144.59,11.63]
[1727084312781,3.4566,144.66,144.62,3.4574]
[1727084313082,6.94000501,144.66,144.62,3.4574]
[1727084314183,11.63,144.68,144.59,11.63]
[1727084314386,1.4432,144.69,144.59,11.63]
[1727084315281,3.4563,144.67,144.59,11.63]
[1727084315784,3.4563,144.67,144.63,3.4571]
[1727084315985,6.86893891,144.67,144.63,3.4571]
[1727084316586,6.86893891,144.67,144.64,3.457]
[1727084317887,3.41263891,144.67,144.64,3.457]
[1727084318279,1.4432,144.69,144.64,3.457]
[1727084318478,4.95613401,144.69,144.64,3.457]
[1727084318687,1.4432,144.69,144.61,11.63]
[1727084318886,4.96235894,144.69,144.61,11.63]
[1727084319789,3.4564,144.67,144.63,3.4572]
[1727084324787,4.96235894,144.69,144.6,11.63]
[1727084324788,11.63,144.68,144.6,11.63]
[1727084324983,11.63,144.68,144.58,13.0604]
[1727084325189,2.8007,144.67,144.58,13.0604]
[1727084325789,11.63,144.66,144.58,13.0604]
[1727084326294,3.4571,144.64,144.6,3.4579]
[1727084326486,11.63,144.66,144.6,3.4579]
[1727084326692,3.4574,144.63,144.59,3.458]
[1727084326888,11.63,144.66,144.58,13.0604]
[1727084327487,3.4572,144.64,144.6,3.4579]
[1727084329799,3.4569,144.65,144.61,3.4576]
[1727084330096,14.4307,144.67,144.58,13.0604]
[1727084330391,1.4643,144.67,144.64,7.44]
[1727084330588,7.44,144.68,144.64,7.44]
[1727084330796,7.44,144.68,144.65,3.4566]
[1727084330999,7.44,144.68,144.64,7.44]
[1727084331192,7.44,144.68,144.63,7.44]
[1727084331504,3.4563,144.67,144.63,10.897]
[1727084331701,10.8963,144.67,144.63,10.897]
[1727084332091,10.8963,144.67,144.64,3.4569]
[1727084332293,3.4563,144.67,144.64,3.4569]
[1727084332695,3.4563,144.67,144.63,3.4571]
[1727084332995,3.4566,144.66,144.59,11.62]
[1727084333695,3.4566,144.66,144.62,3.4573]
[1727084334298,3.4566,144.66,144.63,3.4572]
[1727084335294,3.4563,144.67,144.63,3.4572]
[1727084335996,11.62,144.68,144.63,3.4572]
[1727084336700,11.62,144.68,144.59,11.62]
[1727084337799,3.4569,144.65,144.62,3.4574]
[1727084339997,3.4566,144.66,144.62,3.4574]
[1727084340202,11.62,144.68,144.59,11.62]
[1727084340399,3.4561,144.68,144.61,11.62]
[1727084340607,4.96235894,144.69,144.61,11.62]
[1727084340806,4.96235894,144.69,144.65,3.4566]
[1727084341097,6.97505894,144.69,144.65,3.4566]
[1727084342909,3.51915894,144.69,144.61,11.62]
[1727084343100,2.7242,144.71,144.59,11.62]
[1727084343101,11.62,144.68,144.59,11.62]
[1727084343302,15.01235078,144.68,144.59,11.62]
[1727084343704,3.4566,144.66,144.62,3.4573]
[1727084344198,3.4569,144.65,144.61,3.4576]
[1727084344804,3.4569,144.65,144.58,1.4304]
[1727084344805,3.4569,144.65,144.62,3.4574]
[1727084345194,3.4569,144.65,144.61,3.4576]
[1727084345400,3.457,144.64,144.58,1.4304]
[1727084346303,4.896,144.65,144.58,1.4304]
[1727084346700,4.896,144.65,144.62,3.4573]
[1727084346898,1.4391,144.65,144.59,11.62]
[1727084347098,3.39235078,144.68,144.61,11.62]
[1727084347402,13.0695,144.7,144.65,3.4567]
[1727084347592,3.4559,144.69,144.65,3.4567]
[1727084347796,6.95953638,144.69,144.65,3.4567]
[1727084348401,3.4561,144.68,144.65,3.4567]
[1727084349408,3.4559,144.69,144.65,3.4567]
[1727084349702,6.90591636,144.69,144.65,3.4567]
[1727084351407,3.4561,144.68,144.65,3.4567]
[1727084351903,1.4495,144.7,144.63,11.62]
[1727084352312,4.9051,144.7,144.67,3.4563]
[1727084352709,4.9051,144.7,144.63,11.62]
[1727084352912,4.9051,144.7,144.66,3.4563]
[1727084355405,1.4495,144.7,144.63,11.62]
[1727084355608,83.0,144.76,144.66,11.62]
[1727084355609,11.62,144.75,144.66,11.62]
[1727084356108,3.4546,144.74,144.7,3.4554]
[1727084356409,7.44,144.73,144.68,7.44]
[1727084356910,85.8886,144.76,144.71,7.44]
[1727084356911,7.44,144.75,144.71,7.44]
[1727084357406,7.44,144.75,144.72,3.455]
[1727084357807,7.44,144.75,144.63,1.4188]
[1727084358008,7.44,144.75,144.71,3.4552]
[1727084358404,13.0592,144.76,144.67,11.62]
[1727084358611,13.0592,144.76,144.68,1.3707]
[1727084359214,13.0592,144.76,144.72,3.4549]
[1727084359215,16.5135,144.76,144.72,3.4549]
[1727084359409,13.0592,144.76,144.68,1.3707]
[1727084360215,3.4544,144.75,144.71,3.4552]
[1727084363413,1.4392,144.76,144.69,11.62]
[1727084363611,1.4392,144.76,144.68,1.3707]
[1727084363612,1.3446,144.79,144.71,11.62]
[1727084364113,1.3446,144.79,144.73,11.62]
[1727084364414,1.33,144.81,144.73,11.62]
[1727084364611,3.4533,144.8,144.73,11.62]
[1727084365318,3.4534,144.79,144.75,3.4543]
[1727084369922,3.4534,144.79,144.76,3.4541]
[1727084370922,6.89713622,144.8,144.76,3.4541]
[1727084371116,3.4532,144.8,144.76,3.4541]
[1727084371518,3.4508259,144.79,144.76,3.4541]
[1727084372127,3.4508259,144.79,144.77,3.4538]
[1727084372320,1.33,144.81,144.73,11.62]
[1727084372927,4.70249481,144.81,144.73,11.62]
[1727084373332,8.15549481,144.81,144.77,3.4538]
[1727084374424,3.4532,144.8,144.77,3.4538]
[1727084374625,16.32249481,144.81,144.71,11.62]
[1727084375020,3.4538,144.78,144.74,3.4544]
[1727084375531,11.62,144.79,144.74,3.4544]
[1727084376926,11.62,144.79,144.73,3.4547]
[1727084377428,3.4541,144.77,144.73,3.4547]
[1727084377625,11.62,144.79,144.73,3.4547]
[1727084378329,7.44,144.76,144.73,3.4547]
[1727084379425,10.8942,144.76,144.73,3.4547]
[1727084380830,10.8942,144.76,144.69,80.62795731]
[1727084380831,7.44,144.74,144.69,86.74625731]
[1727084381135,3.53134287,144.73,144.69,86.74625731]
[1727084381634,6.98634287,144.73,144.71,3.4553]
[1727084383436,3.4547,144.74,144.71,7.44]
[1727084384228,3.40165364,144.73,144.71,3.4552]
[1727084386039,12.3275,144.75,144.72,3.455]
[1727084387636,7.44,144.74,144.71,3.4553]
[1727084387838,3.51790405,144.73,144.71,3.4553]
[1727084388040,7.44,144.74,144.71,3.4553]
[1727084388545,3.53103829,144.73,144.71,3.4553]
[1727084389040,7.44,144.74,144.71,3.4553]
[1727084389435,3.37583872,144.73,144.71,3.4553]
[1727084393835,10.8949,144.73,144.7,3.4555]
[1727084394135,3.41766511,144.72,144.7,10.8955]
[1727084394737,10.8947,144.74,144.71,3.4552]
[1727084395445,3.3730817,144.73,144.71,3.4552]
[1727084397537,7.44,144.73,144.7,3.4555]
[1727084397742,7.44,144.72,144.67,7.44]
[1727084398342,10.8952,144.72,144.69,3.4558]
[1727084398648,3.39681991,144.71,144.69,3.4558]
[1727084398940,10.8949,144.73,144.7,3.4554]
[1727084399143,10.8949,144.73,144.69,7.44]
[1727084399539,14.2872263,144.73,144.69,7.44]
[1727084399938,14.2872263,144.73,144.7,3.4553]
[1727084400345,10.8323263,144.73,144.68,7.44]
[1727084400849,10.8323263,144.73,144.7,3.4555]
[1727084401746,14.2873263,144.73,144.7,3.4555]
[1727084402547,10.8323263,144.73,144.71,3.4552]
[1727084402843,10.8323263,144.73,144.68,7.44]
[1727084403042,10.8323263,144.73,144.7,3.4554]
[1727084403745,8.873,144.75,144.7,7.44]
[1727084404841,3.4546,144.74,144.71,3.4552]
[1727084405047,8.873,144.75,144.71,3.4552]
[1727084405346,10.8947,144.74,144.7,10.8954]
[1727084405546,3.53128983,144.73,144.7,7.44]
[1727084406151,12.3275,144.75,144.7,7.44]
[1727084406541,3.454,144.77,144.74,3.4546]
[1727084406738,3.37249481,144.81,144.76,7.44]
[1727084407047,8.8652,144.82,144.76,7.44]
[1727084407250,3.4531,144.81,144.77,3.4537]
[1727084407950,3.4533,144.8,144.76,10.8941]
[1727084408245,7.44,144.79,144.74,7.44]
[1727084408647,3.4537,144.78,144.74,10.8944]
[1727084409549,3.4537,144.78,144.75,3.4543]
[1727084411953,3.4537,144.78,144.74,10.8945]
[1727084412346,10.8939,144.77,144.72,7.44]
[1727084412752,10.8939,144.77,144.73,3.4547]
[1727084414146,1.4637,144.78,144.71,3.4551]
[1727084414147,7.44,144.75,144.71,3.4551]
[1727084414349,1.4446,144.77,144.61,6.915]
[1727084414546,7.44,144.7,144.65,7.44]
[1727084414856,3.47808252,144.69,144.67,3.4561]
[1727084415058,7.44,144.7,144.65,7.44]
[1727084415245,3.47911983,144.69,144.65,7.44]
[1727084416354,14.37501983,144.69,144.66,3.4565]
[1727084416950,10.91911983,144.69,144.64,80.78134967]
[1727084417151,10.91911983,144.69,144.64,88.22134967]
[1727084417552,3.456,144.68,144.65,3.4566]
[1727084417857,3.47911983,144.69,144.64,88.22134967]
[1727084418157,3.4556,144.7,144.67,3.4561]
[1727084418456,3.51369665,144.69,144.67,3.4561]
[1727084420159,10.8958,144.69,144.66,3.4564]
[1727084420361,14.28640316,144.69,144.64,8.887]
[1727084420656,14.28640316,144.69,144.65,3.4566]
[1727084420855,7.44,144.66,144.6,1.4214]
[1727084421156,7.44,144.65,144.6,8.8614]
[1727084421353,7.44,144.65,144.62,3.4572]
[1727084421561,7.44,144.67,144.63,7.44]
[1727084421857,12.30091387,144.68,144.63,7.44]
[1727084422158,15.75711387,144.68,144.65,3.4567]
[1727084422360,8.31711387,144.68,144.65,3.4567]
[1727084422653,3.4563,144.67,144.63,3.4572]
[1727084422857,4.86091387,144.68,144.63,3.4572]
[1727084423160,16.48091387,144.68,144.63,3.4572]
[1727084423351,3.4566,144.66,144.62,3.4574]
[1727084425453,3.4566,144.66,144.56,1.3484]
[1727084425454,11.62,144.65,144.56,12.9684]
[1727084425961,15.0768,144.65,144.61,3.4576]
[1727084427156,11.62,144.63,144.56,1.3484]
[1727084427767,11.62,144.63,144.59,3.458]
[1727084429563,15.0773,144.63,144.59,3.458]
[1727084431565,3.4575,144.62,144.58,3.4583]
[1727084432779,3.4575,144.62,144.59,3.4581]
[1727084432979,15.0773,144.63,144.59,3.4581]
[1727084433180,15.0773,144.63,144.54,11.62]
[1727084433573,15.0773,144.63,144.59,3.458]
[1727084436178,3.4576,144.62,144.58,3.4584]
[1727084438082,3.4576,144.62,144.59,3.4581]
[1727084438381,11.62,144.63,144.54,11.62]
[1727084438878,11.62,144.63,144.6,3.4578]
[1727084441179,4.86091387,144.68,144.62,3.4574]
[1727084441380,16.48091387,144.68,144.58,11.62]
[1727084441576,16.48091387,144.68,144.59,1.3569]
[1727084442189,19.93701387,144.68,144.64,3.4568]
[1727084442484,7.44,144.66,144.61,7.44]
[1727084442677,7.44,144.66,144.63,3.4571]
[1727084444481,7.44,144.66,144.64,3.4569]
[1727084445484,7.44,144.67,144.65,3.4567]
[1727084445685,7.44,144.67,144.62,7.44]
[1727084446283,7.44,144.67,144.65,3.4566]
[1727084450879,12.30091387,144.68,144.66,3.4565]
[1727084451079,7.44,144.68,144.64,7.44]
[1727084451280,7.44,144.7,144.65,7.44]
[1727084451589,3.5072975,144.69,144.65,7.44]
[1727084452187,3.5072975,144.69,144.66,3.4563]
[1727084453289,3.5072975,144.69,144.67,3.4562]
[1727084453491,83.0,144.84,144.68,7.44]
[1727084453693,7.44,144.73,144.68,7.44]
[1727084453986,3.50311203,144.72,144.7,3.4554]
[1727084454389,3.50311203,144.72,144.68,7.44]
[1727084454390,3.50311203,144.72,144.71,3.4553]